bitfinex/quotes_BTCUSD_20260127
["timestamp","ask_amount","ask_price","bid_price","bid_amount"]
[1769532823508,0.02325238,88737.0,88719.0,0.68931637]
[1769532824549,0.63938301,88736.0,88719.0,0.68931637]
[1769532824743,0.02325238,88735.0,88719.0,0.68931637]
[1769532826032,0.63938301,88735.0,88713.0,0.00013946]
[1769532826228,0.02325238,88734.0,88715.0,0.01750064]
[1769532826480,0.02325238,88747.0,88718.0,0.68931637]
[1769532826685,0.05658022,88752.0,88714.0,0.03151148]
[1769532826686,0.02325238,88745.0,88731.0,0.68931637]
[1769532830529,0.02325238,88745.0,88730.0,0.03151148]
[1769532830530,0.0002432,88752.0,88732.0,0.01300372]
[1769532830724,0.0002432,88752.0,88733.0,0.70232009]
[1769532831125,0.02349558,88752.0,88733.0,0.70232009]
[1769532832358,0.1158,88765.0,88733.0,0.70232009]
[1769532832678,0.62826664,88762.0,88735.0,0.68931637]
[1769532832874,0.02325238,88761.0,88735.0,0.68931637]
[1769532833046,0.02325238,88757.0,88735.0,0.68931637]
[1769532833252,0.17776344,88765.0,88735.0,0.68931637]
[1769532833253,0.02325238,88755.0,88735.0,0.68931637]
[1769532833458,0.02325238,88754.0,88735.0,0.68931637]
[1769532834693,0.17776344,88765.0,88745.0,0.66280677]
[1769532834694,0.02257481,88765.0,88745.0,0.66280677]
[1769532834876,0.02257481,88764.0,88745.0,0.66280677]
[1769532835008,0.62826664,88764.0,88745.0,0.66280677]
[1769532835393,0.06189246,88766.0,88745.0,0.66280677]
[1769532835394,0.02257481,88763.0,88745.0,0.66280677]
[1769532835562,0.02257481,88762.0,88745.0,0.66280677]
[1769532836104,0.02271432,88762.0,88745.0,0.66280677]
[1769532836245,0.02271432,88762.0,88744.0,0.03151148]
[1769532836246,0.02271432,88762.0,88747.0,0.6398751]
[1769532837619,0.02257481,88760.0,88734.0,0.6398751]
[1769532837866,0.02257481,88760.0,88745.0,0.03151148]
[1769532840239,0.02257481,88760.0,88741.0,0.6398751]
[1769532840397,0.02257481,88760.0,88745.0,0.03151148]
[1769532840809,0.47733653,88761.0,88745.0,0.03151148]
[1769532841137,0.02257481,88760.0,88745.0,0.03151148]
[1769532841688,0.47884583,88759.0,88739.0,0.02293167]
[1769532841910,0.00013951,88762.0,88702.0,0.45094634]
[1769532841911,0.47884583,88749.0,88736.0,0.02336]
[1769532842113,0.47884583,88749.0,88737.0,0.03151148]
[1769532842545,0.02257481,88753.0,88735.0,0.02288659]
[1769532842546,0.02257481,88745.0,88735.0,0.02288659]
[1769532842728,0.02257481,88741.0,88735.0,0.02288659]
[1769532843932,0.02257481,88741.0,88723.0,0.02293167]
[1769532844131,0.02257481,88741.0,88724.0,0.66280677]
[1769532844663,0.02257481,88741.0,88711.0,0.22572778]
[1769532844664,0.02257481,88741.0,88711.0,0.0002768]
[1769532844849,0.11576,88761.0,88719.0,0.03151148]
[1769532844850,0.02257481,88737.0,88719.0,0.03151148]
[1769532845049,0.06229428,88747.0,88711.0,0.0002768]
[1769532845050,0.01,88719.0,88711.0,0.0002768]
[1769532845251,0.69458715,88718.0,88711.0,0.0002768]
[1769532845822,0.02257481,88719.0,88711.0,0.0002768]
[1769532846229,0.71716196,88718.0,88711.0,0.0002768]
[1769532846633,0.02257481,88717.0,88711.0,0.0002768]
[1769532846834,9.947e-05,88719.0,88695.0,0.0002726]
[1769532846835,0.0002768,88711.0,88695.0,0.0002726]
[1769532847054,0.71716473,88711.0,88695.0,0.0002726]
[1769532848094,0.02257481,88718.0,88696.0,0.66280677]
[1769532848279,0.69431312,88717.0,88697.0,0.66280677]
[1769532848475,0.71688793,88716.0,88697.0,0.66280677]
[1769532848681,0.69431312,88720.0,88697.0,0.02293167]
[1769532848867,0.28614585,88727.0,88697.0,0.02293167]
[1769532848868,0.02257481,88717.0,88697.0,0.02307113]
[1769532849074,0.69431312,88714.0,88697.0,0.00013946]
[1769532849273,0.69431312,88710.0,88697.0,0.00013946]
[1769532849470,0.69431312,88708.0,88697.0,0.00013946]
[1769532849904,0.02257481,88725.0,88698.0,0.6398751]
[1769532850101,0.02257481,88722.0,88699.0,0.02293167]
[1769532850350,0.71688793,88722.0,88703.0,0.02293167]
[1769532850484,0.71688793,88722.0,88703.0,0.02038166]
[1769532850703,0.02257481,88721.0,88703.0,0.65600706]
[1769532851007,0.69473389,88741.0,88710.0,0.02293167]
[1769532851209,0.69473389,88739.0,88711.0,0.02293167]
[1769532851433,0.06243687,88741.0,88723.0,0.02293167]
[1769532851642,0.69473389,88746.0,88725.0,0.02293167]
[1769532851840,0.69473389,88744.0,88725.0,0.02293167]
[1769532852135,0.69473389,88742.0,88725.0,0.02293167]
[1769532852654,0.06232177,88749.0,88729.0,0.6398751]
[1769532852864,0.69472809,88749.0,88730.0,0.02293167]
[1769532853211,0.7173029,88749.0,88730.0,0.02293167]
[1769532853481,0.69472809,88749.0,88731.0,0.6398751]
[1769532853682,0.00013946,88749.0,88723.0,0.02293167]
[1769532853884,0.00013946,88749.0,88721.0,0.03151148]
[1769532853885,0.69472809,88749.0,88725.0,0.02293167]
[1769532854095,0.69472809,88749.0,88711.0,0.22545055]
[1769532854096,0.69545606,88739.0,88708.0,0.03151148]
[1769532854287,0.33404492,88740.0,88715.0,0.03151148]
[1769532854288,0.02257481,88736.0,88715.0,0.03151148]
[1769532854476,0.71716344,88733.0,88715.0,0.03151148]
[1769532854644,0.71716344,88733.0,88711.0,0.66280677]
[1769532854645,0.71716344,88733.0,88713.0,0.02293167]
[1769532855029,0.02257481,88732.0,88713.0,0.02293167]
[1769532855232,0.69458863,88731.0,88713.0,0.02293167]
[1769532856236,0.69458863,88731.0,88713.0,0.6398751]
[1769532856438,0.69458863,88731.0,88715.0,0.02293167]
[1769532858152,0.69458863,88731.0,88712.0,0.03151148]
[1769532858153,0.02257481,88732.0,88716.0,0.6398751]
[1769532858372,0.02257481,88737.0,88716.0,0.6398751]
[1769532858573,0.69458863,88736.0,88717.0,0.02293167]
[1769532861471,0.71716344,88736.0,88717.0,0.02293167]
[1769532863642,0.0239846,88735.0,88717.0,0.02293167]
[1769532863845,0.05634531,88739.0,88710.0,0.67809685]
[1769532863846,0.68950675,88732.0,88711.0,0.02374699]
[1769532864223,0.68950675,88732.0,88714.0,0.05525847]
[1769532864400,0.33404492,88730.0,88711.0,0.67809685]
[1769532864607,0.6686607,88726.0,88703.0,0.1158]
[1769532864813,0.6686607,88722.0,88705.0,0.03151148]
[1769532865019,0.69129676,88722.0,88705.0,0.03151148]
[1769532865279,0.69129676,88722.0,88706.0,0.0241581]
[1769532865430,0.6686607,88722.0,88706.0,0.0241581]
[1769532865844,0.06234822,88733.0,88707.0,0.66895697]
[1769532866045,0.6686607,88736.0,88708.0,0.66895697]
[1769532866245,0.6686607,88736.0,88711.0,0.0241581]
[1769532866472,0.6686607,88736.0,88713.0,0.66895697]
[1769532866678,0.69129676,88736.0,88714.0,0.0241581]
[1769532867489,0.06340446,88749.0,88719.0,0.03151148]
[1769532867686,0.6686607,88746.0,88721.0,0.0241581]
[1769532867888,0.6686607,88744.0,88722.0,0.0241581]
[1769532868100,0.6686607,88738.0,88715.0,0.1158]
[1769532868276,0.02263606,88735.0,88712.0,0.0241581]
[1769532868476,0.02263606,88731.0,88712.0,0.0241581]
[1769532868820,0.69129676,88729.0,88712.0,0.0241581]
[1769532871828,0.33418726,88740.0,88706.0,0.1158]
[1769532871829,0.02263606,88738.0,88714.0,0.0241581]
[1769532872013,0.6686607,88737.0,88716.0,0.0241581]
[1769532872217,0.6686607,88737.0,88717.0,0.69311507]
[1769532872419,0.05634062,88746.0,88711.0,0.03151148]
[1769532872420,0.6686607,88753.0,88720.0,0.0241581]
[1769532872615,0.66832649,88748.0,88723.0,0.66895697]
[1769532872958,0.06224696,88751.0,88724.0,0.0241581]
[1769532872959,0.69096255,88746.0,88724.0,0.0241581]
[1769532874035,0.69096255,88746.0,88726.0,0.0241581]
[1769532874239,0.69096255,88746.0,88725.0,0.03151148]
[1769532874240,0.66832649,88746.0,88730.0,0.0241581]
[1769532874581,0.06224696,88751.0,88732.0,0.0241581]
[1769532874736,0.11268084,88750.0,88732.0,0.0241581]
[1769532874939,0.06224696,88751.0,88733.0,0.66895697]
[1769532874940,0.11268084,88749.0,88733.0,0.66895697]
[1769532875179,0.06224696,88751.0,88730.0,0.66895697]
[1769532875180,0.00013946,88751.0,88730.0,0.66895697]
[1769532875379,0.00013946,88751.0,88733.0,0.0241581]
[1769532875538,0.00013946,88751.0,88736.0,0.66895697]
[1769532875739,0.00013946,88751.0,88737.0,0.0241581]
[1769532876091,0.00013946,88751.0,88712.0,0.22385197]
[1769532876092,0.67832649,88737.0,88711.0,0.25536345]
[1769532876292,0.67832649,88737.0,88720.0,0.0241581]
[1769532876494,0.67832649,88737.0,88720.0,0.02351952]
[1769532876689,0.70096255,88737.0,88720.0,0.02287984]
[1769532877462,0.70096255,88737.0,88720.0,0.02207167]
[1769532878551,0.67832649,88737.0,88721.0,0.66895697]
[1769532878681,0.67832649,88737.0,88722.0,0.0241581]
[1769532879731,0.67832649,88737.0,88722.0,0.02287308]
[1769532882694,0.01,88737.0,88722.0,0.69183005]
[1769532882929,0.01,88737.0,88723.0,0.0241581]
[1769532883139,0.01,88737.0,88724.0,0.0241581]
[1769532883409,0.01,88737.0,88724.0,0.02286636]
[1769532883886,0.01,88737.0,88718.0,0.03151148]
[1769532883887,0.00013946,88751.0,88723.0,0.0241581]
[1769532884111,0.11271775,88750.0,88733.0,0.0241581]
[1769532884328,0.00013946,88751.0,88737.0,0.0241581]
[1769532884969,0.66781735,88751.0,88737.0,0.0241581]
[1769532885153,0.66781735,88751.0,88732.0,0.03151148]
[1769532885356,0.66781735,88751.0,88732.0,0.05566958]
[1769532885718,0.66781735,88751.0,88733.0,0.0241581]
[1769532886070,0.66781735,88751.0,88732.0,0.03151148]
[1769532886071,0.66781735,88751.0,88734.0,0.0241581]
[1769532886281,0.66781735,88751.0,88735.0,0.0241581]
[1769532886643,0.66781735,88751.0,88735.0,0.02286445]
[1769532887631,0.66781735,88751.0,88719.0,0.05635666]
[1769532887632,0.26719782,88745.0,88728.0,0.1158]
[1769532887872,0.66767789,88739.0,88728.0,0.1158]
[1769532888070,0.66767789,88739.0,88714.0,0.0241581]
[1769532888071,0.26719782,88730.0,88714.0,0.0241581]
[1769532888274,0.26719782,88730.0,88715.0,0.0241581]
[1769532888687,0.26719782,88730.0,88715.0,0.69311507]
[1769532889048,0.26719782,88730.0,88716.0,0.0241581]
[1769532889389,0.1158,88745.0,88711.0,0.1158]
[1769532889390,0.66621682,88738.0,88719.0,0.66895697]
[1769532889593,0.66621682,88738.0,88721.0,0.0241581]
[1769532891175,0.68885288,88738.0,88721.0,0.0241581]
[1769532891576,0.68885288,88738.0,88721.0,0.69311507]
[1769532892407,0.66621682,88738.0,88721.0,0.0241581]
[1769532892609,0.68885288,88736.0,88716.0,0.0241581]
[1769532893982,0.02263606,88735.0,88693.0,0.22385197]
[1769532894182,0.02412274,88731.0,88710.0,0.02291051]
[1769532894384,0.02412274,88731.0,88711.0,0.02291051]
[1769532894385,0.66621682,88730.0,88711.0,0.02291051]
[1769532894588,0.66621682,88730.0,88711.0,0.66563334]
[1769532894789,0.66621682,88730.0,88712.0,0.02291051]
[1769532896019,0.66621682,88730.0,88713.0,0.66563334]
[1769532896633,0.66621682,88730.0,88713.0,0.68854385]
[1769532896838,0.66621682,88730.0,88701.0,0.02318091]
[1769532896839,0.02412274,88728.0,88701.0,0.02318091]
[1769532897091,0.66621682,88720.0,88701.0,0.0002704]
[1769532897230,0.69033956,88718.0,88701.0,0.0002704]
[1769532897829,0.66621682,88718.0,88702.0,0.02291051]
[1769532898030,0.1158,88723.0,88703.0,0.02291051]
[1769532898031,0.13992274,88723.0,88703.0,0.02291051]
[1769532898232,0.80613956,88723.0,88703.0,0.02304997]
[1769532899320,0.06088968,88732.0,88707.0,0.02291051]
[1769532899321,0.1158,88724.0,88707.0,0.02291051]
[1769532899522,0.1158,88724.0,88708.0,0.02291051]
[1769532899735,0.1158,88724.0,88708.0,0.01613693]
[1769532899965,0.1158,88724.0,88708.0,0.67348925]
[1769532900153,0.1158,88724.0,88708.0,0.6685219]
[1769532900349,0.02412274,88728.0,88710.0,0.66563334]
[1769532900553,0.02423354,88741.0,88716.0,0.02291051]
[1769532900794,0.02412274,88739.0,88717.0,0.02291051]
[1769532901113,0.02412274,88739.0,88719.0,0.02291051]
[1769532901267,0.02412274,88739.0,88719.0,0.66563334]
[1769532901465,0.02412274,88739.0,88720.0,0.02291051]
[1769532901915,0.02412274,88739.0,88721.0,0.66563334]
[1769532903369,0.02412274,88739.0,88720.0,0.02291051]
[1769532907089,0.05634018,88747.0,88720.0,0.02291051]
[1769532907090,0.01874768,88747.0,88720.0,0.02291051]
[1769532907340,0.11272063,88746.0,88718.0,0.66563334]
[1769532907515,0.01041007,88745.0,88719.0,0.02291051]
[1769532907916,0.01041007,88743.0,88719.0,0.02291051]
[1769532908174,0.01041007,88742.0,88719.0,0.02291051]
[1769532909534,0.26727432,88740.0,88719.0,0.02291051]
[1769532911042,0.26727432,88740.0,88719.0,0.66563334]
[1769532911416,0.26727432,88740.0,88720.0,0.02291051]
[1769532911618,0.01041007,88742.0,88720.0,0.02291051]
[1769532912705,0.08186203,88747.0,88723.0,0.66563334]
[1769532912897,0.11272678,88746.0,88727.0,0.66563334]
[1769532913054,0.06136362,88751.0,88730.0,0.02291051]
[1769532913255,0.0001906,88752.0,88733.0,0.66563334]
[1769532913477,0.0001906,88752.0,88735.0,0.02291051]
[1769532913682,0.70875995,88751.0,88735.0,0.02291051]
[1769532914075,0.68928802,88751.0,88728.0,0.69714482]
[1769532914393,0.71339648,88751.0,88730.0,0.66563334]
[1769532914575,0.71339648,88751.0,88731.0,0.02291051]
[1769532915046,0.71339648,88751.0,88731.0,0.66563334]
[1769532915234,0.71339648,88751.0,88732.0,0.02291051]
[1769532916457,0.71339648,88751.0,88732.0,0.02277581]
[1769532918421,0.68942748,88751.0,88734.0,0.02291051]
[1769532918698,0.68942748,88751.0,88735.0,0.02291051]
[1769532918893,0.02412274,88750.0,88728.0,0.03151148]
[1769532919018,0.02412274,88748.0,88728.0,0.03151148]
[1769532919219,0.02412274,88748.0,88701.0,0.0001906]
[1769532919415,0.68928802,88749.0,88710.0,0.66563334]
[1769532919620,0.02412274,88733.0,88712.0,0.02310111]
[1769532919821,0.71341076,88732.0,88713.0,0.03151148]
[1769532920016,0.68928802,88732.0,88713.0,0.03151148]
[1769532920261,0.68928802,88730.0,88713.0,0.03151148]
[1769532920660,0.68928802,88730.0,88713.0,0.05442199]
[1769532920985,0.68928802,88730.0,88713.0,0.02291051]
[1769532921443,0.68928802,88730.0,88714.0,0.68854385]
[1769532921642,0.02412274,88748.0,88715.0,0.02291051]
[1769532921911,0.13680739,88747.0,88719.0,0.02291051]
[1769532922143,0.13680739,88746.0,88722.0,0.66563334]
[1769532922346,0.02412274,88746.0,88724.0,0.66563334]
[1769532922593,0.02412274,88746.0,88725.0,0.02281795]
[1769532922939,0.02412274,88746.0,88726.0,0.02281795]
[1769532924839,0.02412274,88746.0,88728.0,0.0225477]
[1769532925195,0.02412274,88746.0,88713.0,0.03151148]
[1769532925196,0.02412274,88746.0,88730.0,0.0225477]
[1769532929074,0.02442369,88749.0,88713.0,0.63778976]
[1769532929281,0.6399439,88739.0,88713.0,0.63778976]
[1769532929434,0.02442369,88738.0,88712.0,0.63798036]
[1769532929635,0.02442369,88738.0,88713.0,0.0225477]
[1769532930252,0.02442369,88738.0,88713.0,0.66033746]
[1769532930456,0.02442369,88738.0,88714.0,0.0225477]
[1769532930994,0.02442369,88738.0,88714.0,0.66033746]
[1769532931217,0.34115344,88750.0,88714.0,0.66033746]
[1769532931218,0.02442369,88749.0,88718.0,0.63778976]
[1769532931395,0.02442369,88749.0,88715.0,0.03151148]
[1769532931396,0.77711859,88748.0,88721.0,0.0225477]
[1769532931605,0.1158,88750.0,88715.0,0.03151148]
[1769532931606,0.02442369,88746.0,88723.0,0.63778976]
[1769532931762,0.02442369,88746.0,88724.0,0.0225477]
[1769532935521,0.02442369,88746.0,88727.0,0.63778976]
[1769532935862,0.02442369,88746.0,88727.0,0.66033746]
[1769532937302,0.02442369,88746.0,88715.0,0.03151148]
[1769532937303,0.00013946,88751.0,88730.0,0.0225477]
[1769532937546,0.19141898,88763.0,88723.0,0.05635493]
[1769532937547,0.08988293,88761.0,88747.0,0.63778976]
[1769532937711,0.08988293,88761.0,88744.0,0.0225477]
[1769532937712,0.112768,88760.0,88744.0,0.0225477]
[1769532937921,0.02442369,88758.0,88732.0,0.056]
[1769532938067,0.02442369,88756.0,88732.0,0.05613946]
[1769532938270,0.02442369,88754.0,88732.0,0.05613946]
[1769532939085,0.02442369,88752.0,88732.0,0.05613946]
[1769532939328,0.02442369,88750.0,88732.0,0.00013946]
[1769532939689,0.02442369,88750.0,88732.0,0.63792922]
[1769532940297,0.33403869,88760.0,88723.0,0.1159906]
[1769532940298,0.05634533,88739.0,88723.0,0.0001906]
[1769532940506,0.63738927,88730.0,88712.0,0.0001906]
[1769532940708,0.02442369,88720.0,88712.0,0.0001906]
[1769532940905,0.66181296,88719.0,88712.0,0.0001906]
[1769532941616,0.02442369,88737.0,88719.0,0.01]
[1769532941744,0.02442369,88733.0,88712.0,0.0001906]
[1769532941943,0.11275026,88736.0,88712.0,0.0001906]
[1769532941944,0.66181296,88731.0,88712.0,0.0001906]
[1769532942161,0.63738927,88729.0,88712.0,0.0001906]
[1769532942390,0.02442369,88728.0,88712.0,0.0001906]
[1769532942721,0.63738927,88726.0,88712.0,0.0001906]
[1769532942854,0.02442369,88725.0,88712.0,0.0001906]
[1769532943059,0.66181296,88725.0,88712.0,0.0001906]
[1769532943842,0.33403869,88722.0,88701.0,0.0001906]
[1769532944146,0.02442369,88718.0,88701.0,0.00033006]
[1769532944367,0.63720058,88716.0,88701.0,0.00033006]
[1769532944721,0.66162427,88714.0,88701.0,0.00033006]
[1769532944899,0.02442369,88713.0,88701.0,0.00033006]
[1769532945107,0.66162427,88713.0,88701.0,0.00033006]
[1769532945683,0.66162427,88713.0,88701.0,0.00013946]
[1769532945684,0.26742437,88711.0,88701.0,0.00013946]
[1769532946871,0.26742437,88720.0,88701.0,0.00013946]
[1769532947113,0.26742437,88720.0,88704.0,0.66033746]
[1769532947324,0.02442369,88723.0,88704.0,0.66033746]
[1769532948036,0.02442369,88723.0,88707.0,0.0225477]
[1769532948226,0.26742437,88720.0,88707.0,0.65721731]
[1769532948387,0.26742437,88720.0,88707.0,0.65284856]
[1769532948600,0.26742437,88720.0,88707.0,0.64598214]
[1769532948817,0.26742437,88720.0,88701.0,0.00013946]
[1769532948996,0.26742437,88720.0,88701.0,0.6694407]
[1769532949403,0.26742437,88720.0,88702.0,0.0225477]
[1769532949600,0.26742437,88720.0,88703.0,0.63778976]
[1769532950020,0.26742437,88720.0,88704.0,0.0225477]
[1769532950223,0.26742437,88720.0,88705.0,0.63778976]
[1769532950387,0.26742437,88720.0,88705.0,0.66033746]
[1769532950791,0.02442369,88723.0,88707.0,0.63778976]
[1769532951042,0.26742437,88730.0,88705.0,0.63778976]
[1769532951200,0.06070229,88730.0,88708.0,0.0225477]
[1769532951404,0.32812666,88730.0,88712.0,0.0225477]
[1769532951611,0.02442369,88732.0,88713.0,0.63778976]
[1769532951844,0.08570124,88732.0,88713.0,0.63778976]
[1769532952192,0.0001744,88735.0,88714.0,0.0225477]
[1769532952435,0.0001744,88735.0,88701.0,0.03165094]
[1769532952436,0.0001744,88735.0,88719.0,0.0225477]
[1769532952611,0.0001744,88735.0,88708.0,0.05636437]
[1769532952612,0.6935393,88749.0,88720.0,0.63778976]
[1769532952836,0.02442369,88745.0,88721.0,0.0225477]
[1769532953048,0.66162427,88742.0,88721.0,0.0225477]
[1769532953367,0.66162427,88742.0,88722.0,0.0225477]
[1769532953966,0.66162427,88742.0,88722.0,0.66033746]
[1769532954170,0.66436759,88748.0,88724.0,0.63778976]
[1769532954383,0.66436759,88748.0,88727.0,0.71366705]
[1769532954579,0.66436759,88748.0,88728.0,0.01900777]
[1769532954892,0.66436759,88748.0,88728.0,0.01087147]
[1769532955189,0.06325979,88752.0,88728.0,0.00354721]
[1769532955190,0.63757419,88747.0,88728.0,0.00354721]
[1769532955353,0.63757419,88747.0,88717.0,0.1158]
[1769532955354,0.02347507,88746.0,88718.0,0.69059117]
[1769532955523,0.02347507,88746.0,88720.0,0.69059117]
[1769532955717,0.02347507,88746.0,88717.0,0.17215885]
[1769532955718,0.02347507,88746.0,88724.0,0.69059117]
[1769532955924,0.02347507,88746.0,88717.0,0.17215883]
[1769532955925,0.63757419,88763.0,88730.0,0.02307588]
[1769532956125,0.63757419,88763.0,88717.0,0.1158]
[1769532956126,0.63757419,88757.0,88733.0,0.69059117]
[1769532956397,0.02347507,88755.0,88735.0,0.71366705]
[1769532956976,0.66104926,88755.0,88735.0,0.71366705]
[1769532957180,0.06319511,88759.0,88719.0,0.02307588]
[1769532957181,0.63757419,88753.0,88719.0,0.02307588]
[1769532957363,0.63757419,88747.0,88722.0,0.03151148]
[1769532957564,0.02347507,88744.0,88722.0,0.03151148]
[1769532957932,0.33411998,88750.0,88721.0,0.69059117]
[1769532957933,0.02347507,88741.0,88721.0,0.69059117]
[1769532958108,0.02347507,88741.0,88716.0,0.0002038]
[1769532958109,0.68371657,88737.0,88716.0,0.0002038]
[1769532958406,0.02347507,88734.0,88717.0,0.69059117]
[1769532959593,0.02347507,88734.0,88717.0,0.71366705]
[1769532960523,0.22534114,88755.0,88717.0,0.69059117]
[1769532960720,0.06319511,88759.0,88721.0,0.69059117]
[1769532960721,0.02347507,88747.0,88721.0,0.69059117]
[1769532960923,0.02347507,88746.0,88718.0,0.02307588]
[1769532961084,0.70395085,88745.0,88721.0,0.69059117]
[1769532961286,0.70395085,88745.0,88725.0,0.69059117]
[1769532961749,0.02347507,88744.0,88725.0,0.69059117]
[1769532961943,0.70395085,88742.0,88725.0,0.69059117]
[1769532962121,0.68047578,88742.0,88725.0,0.69059117]
[1769532962300,0.02347507,88741.0,88725.0,0.69059117]
[1769532962700,0.02347507,88749.0,88727.0,0.71366705]
[1769532962898,0.02347507,88749.0,88728.0,0.02307588]
[1769532963142,0.02347507,88748.0,88729.0,0.69059117]
[1769532963338,0.33411998,88760.0,88730.0,0.02307588]
[1769532963339,0.2007554,88760.0,88730.0,0.02307588]
[1769532963499,0.02347507,88758.0,88734.0,0.02307588]
[1769532963824,0.02347507,88758.0,88738.0,0.02307588]
[1769532964027,0.22423047,88758.0,88739.0,0.69059117]
[1769532964239,0.02347507,88757.0,88739.0,0.69059117]
[1769532965403,0.05632942,88764.0,88739.0,0.69059117]
[1769532965404,0.2007554,88756.0,88739.0,0.69059117]
[1769532965604,0.02347507,88755.0,88739.0,0.69059117]
[1769532965741,0.02347507,88755.0,88739.0,0.71366705]
[1769532966308,0.00034321,88759.0,88743.0,0.69059117]
[1769532966984,0.02381828,88759.0,88743.0,0.69059117]
[1769532967189,0.22457368,88759.0,88743.0,0.69059117]
[1769532968784,0.02381828,88759.0,88743.0,0.69059117]
[1769532969471,0.2007554,88758.0,88742.0,0.02307588]
[1769532969683,0.2007554,88758.0,88737.0,0.69059117]
[1769532969684,0.00034321,88759.0,88737.0,0.69059117]
[1769532969899,0.02347507,88757.0,88733.0,0.80639117]
[1769532970107,0.02347507,88753.0,88733.0,0.80639117]
[1769532970321,0.02347507,88752.0,88733.0,0.80639117]
[1769532970540,0.2007554,88751.0,88733.0,0.80639117]
[1769532971118,0.02347507,88752.0,88733.0,0.80639117]
[1769532971423,0.02347507,88752.0,88736.0,0.02307588]
[1769532971645,0.02347507,88752.0,88737.0,0.69059117]
[1769532972002,0.02381828,88759.0,88739.0,0.69059117]
[1769532972203,0.2007554,88758.0,88740.0,0.02307588]
[1769532972399,0.22423047,88758.0,88740.0,0.02307588]
[1769532972605,0.02347507,88758.0,88741.0,0.69059117]
[1769532973017,0.2007554,88758.0,88741.0,0.69059117]
[1769532973223,0.00034321,88759.0,88741.0,0.69059117]
[1769532973224,0.2007554,88757.0,88741.0,0.69059117]
[1769532973541,0.02347507,88753.0,88733.0,0.80639117]
[1769532973942,0.2007554,88753.0,88733.0,0.80639117]
[1769532974141,0.02347507,88752.0,88733.0,0.80639117]
[1769532974336,0.02347507,88752.0,88734.0,0.71366705]
[1769532974546,0.02347507,88752.0,88734.0,0.69059117]
[1769532974729,0.00034321,88759.0,88737.0,0.02307588]
[1769532974730,0.2007554,88758.0,88737.0,0.02307588]
[1769532974927,0.22423047,88758.0,88738.0,0.71366705]
[1769532975147,0.22423047,88758.0,88739.0,0.69059117]
[1769532975374,0.02347507,88758.0,88739.0,0.69059117]
[1769532975701,0.02347507,88758.0,88734.0,0.03151148]
[1769532975702,0.02347507,88758.0,88741.0,0.71366705]
[1769532976034,0.02347507,88757.0,88741.0,0.71366705]
[1769532977650,0.2007554,88756.0,88741.0,0.02307588]
[1769532978707,0.02347507,88757.0,88742.0,0.69059117]
[1769532979051,0.00034321,88759.0,88742.0,0.71366705]
[1769532979253,0.00034321,88759.0,88742.0,0.69059117]
[1769532979463,0.00034321,88759.0,88744.0,0.69059117]
[1769532979871,0.00034321,88759.0,88733.0,0.1158]
[1769532979872,0.02347507,88752.0,88733.0,0.1158]
[1769532980073,0.26715994,88750.0,88733.0,0.80639117]
[1769532982403,0.22423047,88752.0,88733.0,0.80639117]
[1769532982601,0.26715994,88750.0,88733.0,0.80639117]
[1769532984406,0.26715994,88750.0,88734.0,0.70726076]
[1769532986444,0.2007554,88749.0,88734.0,0.02312286]
[1769532987354,0.2007554,88749.0,88717.0,0.02708]
[1769532987355,0.29107963,88744.0,88730.0,0.1158]
[1769532987554,0.26715994,88740.0,88730.0,0.1158]
[1769532988677,0.29107963,88750.0,88731.0,0.6841379]
[1769532989035,0.02391969,88749.0,88731.0,0.6841379]
[1769532989235,0.22467509,88749.0,88731.0,0.6841379]
[1769532991881,0.2007554,88749.0,88731.0,0.6841379]
[1769532992082,0.02391969,88748.0,88731.0,0.6841379]
[1769532994966,0.2007554,88740.0,88730.0,0.1158]
[1769532998865,0.2007554,88740.0,88723.0,0.02312286]
[1769532999072,0.50172878,88733.0,88716.0,0.02337232]
[1769532999266,0.26719631,88733.0,88717.0,0.1158]
[1769532999473,0.26719631,88733.0,88718.0,0.6841379]
[1769533000120,0.26719631,88733.0,88718.0,0.70726076]
[1769533000907,0.26719631,88730.0,88716.0,0.00024946]
[1769533001262,0.26719631,88740.0,88696.0,0.1158]
[1769533001263,0.25820519,88725.0,88696.0,0.1158]
[1769533001392,0.00548742,88734.0,88697.0,0.0002049]
[1769533001393,0.23413691,88712.0,88697.0,0.0002049]
[1769533001617,0.02870161,88732.0,88697.0,0.0002049]
[1769533001618,0.02391969,88706.0,88697.0,0.0002049]
[1769533001833,0.01391969,88706.0,88697.0,0.0002049]
[1769533002032,4.643e-05,88706.0,88697.0,0.0002049]
[1769533009746,0.23413691,88739.0,88700.0,0.6841379]
[1769533009925,0.0002049,88740.0,88703.0,0.02312286]
[1769533009926,0.26719631,88730.0,88703.0,0.02312286]
[1769533010126,0.26719631,88730.0,88706.0,0.6841379]
[1769533010462,0.26719631,88730.0,88711.0,0.02312286]
[1769533010621,0.26719631,88730.0,88700.0,0.05650922]
[1769533010622,0.26719631,88730.0,88713.0,0.6841379]
[1769533010813,0.23413691,88729.0,88714.0,0.02312286]
[1769533011023,0.26719631,88724.0,88709.0,0.6841379]
[1769533011217,0.23413691,88719.0,88701.0,0.02312286]
[1769533011554,0.26719631,88711.0,88700.0,0.00013946]
[1769533011931,0.26719631,88711.0,88700.0,0.02326232]
[1769533012166,0.23413691,88720.0,88700.0,0.02326232]
[1769533012167,0.50133322,88720.0,88702.0,0.02312286]
[1769533012331,0.50133322,88720.0,88704.0,0.02312286]
[1769533012552,0.02391969,88729.0,88704.0,0.02312286]
[1769533012750,0.02391969,88729.0,88707.0,0.6841379]
[1769533012966,0.2580566,88729.0,88709.0,0.02312286]
[1769533013371,0.2580566,88729.0,88711.0,0.02312286]
[1769533013713,0.26719631,88730.0,88713.0,0.6841379]
[1769533013875,0.26719631,88730.0,88716.0,0.01973886]
[1769533014038,0.26719631,88730.0,88716.0,0.01635486]
[1769533014241,0.26719631,88730.0,88716.0,0.70604588]
[1769533014464,0.26719631,88730.0,88716.0,0.70523085]
[1769533015341,0.23413691,88729.0,88716.0,0.01553983]
[1769533015538,0.23413691,88729.0,88708.0,0.68969102]
[1769533015754,0.26719631,88720.0,88708.0,0.71257314]
[1769533017482,0.26719631,88720.0,88700.0,0.00013946]
[1769533017483,0.23413691,88719.0,88700.0,0.00013946]
[1769533017682,0.26719631,88710.0,88700.0,0.00013946]
[1769533018925,0.02263177,88718.0,88700.0,0.00013946]
[1769533019157,0.26719631,88720.0,88703.0,0.68969102]
[1769533019305,0.26719631,88720.0,88703.0,0.68479332]
[1769533019507,0.52962189,88720.0,88703.0,0.6782622]
[1769533019709,0.02263177,88719.0,88703.0,0.67091351]
[1769533019945,0.02263177,88719.0,88703.0,0.66438008]
[1769533020258,0.02263177,88719.0,88703.0,0.65702877]
[1769533020879,0.26719631,88720.0,88703.0,0.65702877]
[1769533021077,0.26719631,88720.0,88705.0,0.68969102]
[1769533021781,0.26719631,88720.0,88707.0,0.68969102]
[1769533022168,0.0613003,88726.0,88708.0,0.02288212]
[1769533022356,0.0613003,88726.0,88711.0,0.68969102]
[1769533022562,0.26719631,88730.0,88713.0,0.71257314]
[1769533022779,0.33033538,88730.0,88713.0,0.70930595]
[1769533022978,0.33033538,88730.0,88713.0,0.70277128]